bitfinex-derivatives/quotes_ETHF0:USTF0_20210107
["timestamp","ask_amount","ask_price","bid_price","bid_amount"]
[1609994417037,4.00959,1207.4,1203.6,30.0]
[1609994417337,4.00959,1207.4,1207.3,4.00959]
[1609994417536,4.00959,1207.4,1203.6,30.0]
[1609994419341,4.00959,1207.2,1206.9,4.00959]
[1609994421441,4.00959,1207.2,1207.1,4.00959]
[1609994424645,4.00959,1207.2,1203.6,30.0]
[1609994425344,4.00959,1207.2,1207.0,4.00959]
[1609994425944,50.116,1208.1,1207.0,4.00959]
[1609994427445,50.116,1208.1,1207.7,4.00959]
[1609994428845,62.2249,1208.2,1207.7,4.00959]
[1609994429046,30.0,1209.3,1207.7,4.00959]
[1609994429545,4.00959,1207.8,1207.7,4.00959]
[1609994434961,4.00959,1207.8,1207.2,5.0]
[1609994435561,4.00959,1207.6,1207.2,5.0]
[1609994437562,4.00959,1207.6,1207.4,4.00959]
[1609994444470,4.00959,1207.6,1207.2,5.0]
[1609994445573,4.00959,1207.3,1207.2,9.00959]
[1609994446473,62.3146,1208.1,1207.2,9.00959]
[1609994447578,4.00959,1207.5,1207.4,4.00959]
[1609994451576,4.00959,1207.5,1207.2,5.0]
[1609994455578,4.00959,1207.3,1207.2,5.0]
[1609994464389,134.041,1207.8,1207.2,5.0]
[1609994465690,134.041,1207.8,1207.7,4.00959]
[1609994466391,30.0,1209.7,1207.7,4.00959]
[1609994466592,30.0,1211.0,1207.7,4.00959]
[1609994467693,30.0,1211.0,1208.6,4.00959]
[1609994468296,30.0,1211.0,1207.2,5.0]
[1609994468594,32.8638,1211.0,1207.3,5.9056]
[1609994468796,64.9553,1210.1,1207.3,5.9056]
[1609994469002,64.9553,1210.1,1207.4,6.0656]
[1609994469598,64.9553,1210.1,1209.1,4.00959]
[1609994471300,2.1267,1210.5,1209.1,4.00959]
[1609994471500,2.8638,1211.0,1209.1,4.00959]
[1609994471800,2.8638,1211.0,1209.3,4.00959]
[1609994471999,2.8638,1211.0,1207.4,6.0656]
[1609994473603,4.00959,1209.3,1209.2,4.00959]
[1609994475408,2.8421,1210.8,1209.2,4.00959]
[1609994475611,4.00959,1209.6,1209.5,4.00959]
[1609994476111,4.00959,1209.6,1207.4,36.0656]
[1609994476410,4.00959,1209.6,1207.4,6.0656]
[1609994477625,4.00959,1209.4,1209.3,4.00959]
[1609994480319,59.1735,1210.5,1209.3,4.00959]
[1609994481722,4.00959,1209.5,1209.3,4.00959]
[1609994484625,4.00959,1209.5,1207.4,6.0656]
[1609994485724,4.00959,1209.5,1209.4,4.00959]
[1609994485925,59.1735,1210.5,1209.4,4.00959]
[1609994486625,59.1735,1210.5,1207.4,6.0656]
[1609994487525,2.4638,1210.6,1207.4,6.0656]
[1609994487725,4.00959,1208.6,1208.4,4.00959]
[1609994488126,2.4638,1210.6,1208.4,4.00959]
[1609994488828,2.4638,1210.6,1207.4,6.0656]
[1609994489028,66.972,1210.2,1207.4,6.0656]
[1609994489329,70.0249,1210.2,1207.4,6.0656]
[1609994489729,70.0249,1210.2,1208.5,4.00959]
[1609994491731,70.0249,1210.2,1209.1,4.00959]
[1609994491930,66.972,1210.2,1207.4,6.0656]
[1609994493736,4.00959,1209.1,1208.9,4.00959]
[1609994503250,4.00959,1209.1,1207.4,6.0656]
[1609994503949,4.00959,1208.4,1208.1,4.00959]
[1609994507954,4.00959,1208.4,1208.3,4.00959]
[1609994513166,4.00959,1208.4,1207.4,6.0656]
[1609994513960,56.6275,1209.6,1207.4,6.0656]
[1609994515763,33.1185,1210.2,1207.4,6.0656]
[1609994515965,33.1185,1210.2,1207.9,4.00959]
[1609994516264,3.1185,1210.2,1207.9,4.00959]
[1609994516465,30.0,1210.4,1207.9,4.00959]
[1609994517366,2.9162,1210.5,1207.9,4.00959]
[1609994517767,30.0,1210.8,1207.9,4.00959]
[1609994517965,30.0,1210.8,1208.3,4.00959]
[1609994518866,48.8528,1210.0,1208.3,4.00959]
[1609994519967,48.8528,1210.0,1208.9,4.00959]
[1609994521567,50.499,1210.0,1208.9,4.00959]
[1609994522068,4.00959,1209.0,1208.9,4.00959]
[1609994522469,4.00959,1209.0,1207.4,9.7396]
[1609994523969,48.8528,1210.0,1208.7,4.00959]
[1609994525272,68.169,1210.7,1208.7,4.00959]
[1609994525971,68.169,1210.7,1209.1,4.00959]
[1609994528072,68.169,1210.7,1209.6,4.00959]
[1609994530074,4.00959,1209.7,1209.6,4.00959]
[1609994531575,68.169,1210.7,1209.6,4.00959]
[1609994532175,68.169,1210.7,1210.1,4.00959]
[1609994534177,4.00959,1210.2,1209.9,4.00959]
[1609994535577,4.00959,1210.2,1207.4,39.7396]
[1609994536180,2.5536,1211.2,1209.3,4.00959]
[1609994536378,1.5577,1212.1,1209.3,4.00959]
[1609994536978,30.0,1212.1,1209.3,4.00959]
[1609994538079,3.674,1212.2,1209.9,4.00959]
[1609994538379,30.0,1212.1,1209.9,4.00959]
[1609994538579,33.2394,1212.1,1207.4,39.7396]
[1609994539380,3.2394,1212.1,1207.4,39.7396]
[1609994539580,4.781,1212.1,1207.4,39.7396]
[1609994540084,34.781,1212.1,1209.8,4.00959]
[1609994540285,33.2394,1212.1,1209.8,4.00959]
[1609994541285,3.2394,1212.1,1209.8,4.00959]
[1609994541885,33.2394,1212.1,1209.8,4.00959]
[1609994542088,4.00959,1209.9,1209.8,4.00959]
[1609994543086,4.00959,1209.9,1207.4,39.7396]
[1609994544187,4.00959,1209.5,1209.4,4.00959]
[1609994546589,4.00959,1209.5,1207.4,39.7396]
[1609994547590,4.00959,1209.5,1207.4,36.0656]
[1609994547790,4.00959,1209.5,1207.4,6.0656]
[1609994548192,3.4151,1210.2,1208.7,4.00959]
[1609994548792,3.4151,1210.2,1207.4,6.0656]
[1609994550595,3.4151,1210.2,1208.2,4.00959]
[1609994551498,33.4151,1210.2,1208.2,4.00959]
[1609994552500,4.00959,1208.3,1208.2,4.00959]
[1609994554201,4.00959,1208.3,1207.4,6.0656]
[1609994554601,82.7664,1209.9,1207.9,4.00959]
[1609994554907,82.7664,1209.9,1207.3,5.9056]
[1609994555102,82.7664,1209.9,1207.2,5.0]
[1609994557603,52.7664,1209.9,1207.2,5.0]
[1609994558507,52.7664,1209.9,1207.8,4.00959]
[1609994560506,4.00959,1208.0,1207.8,4.00959]
[1609994563908,3.4151,1210.2,1207.8,4.00959]
[1609994564114,30.0,1210.4,1207.8,4.00959]
[1609994564608,4.00959,1208.1,1207.8,4.00959]
[1609994565615,4.00959,1208.1,1207.2,5.0]
[1609994566614,32.148,1210.1,1207.2,9.00959]
[1609994566615,4.00959,1207.3,1207.2,9.00959]
[1609994569215,1.00959,1207.3,1207.2,9.00959]
[1609994569416,32.148,1210.1,1207.2,9.00959]
[1609994570617,32.148,1210.1,1207.4,4.00959]
[1609994572617,4.00959,1207.5,1207.4,4.00959]
[1609994575421,32.148,1210.1,1207.4,4.00959]
[1609994575921,2.148,1210.1,1207.4,4.00959]
[1609994576125,30.0,1210.4,1207.4,4.00959]
[1609994576421,30.0,1210.4,1207.2,5.0]
[1609994576923,4.00959,1208.4,1208.1,4.00959]
[1609994577124,2.2814,1210.0,1208.1,4.00959]
[1609994578326,2.3118,1210.5,1208.1,4.00959]
[1609994578525,30.0,1211.0,1208.1,4.00959]
[1609994578925,4.00959,1209.0,1208.8,4.00959]
[1609994579327,2.7827,1210.6,1208.8,4.00959]
[1609994580126,6.1877,1211.1,1208.8,4.00959]
[1609994580926,4.00959,1209.3,1209.1,4.00959]
[1609994582128,46.9535,1210.6,1209.1,4.00959]
[1609994582928,4.00959,1209.7,1209.5,4.00959]
[1609994583831,4.00959,1209.7,1207.5,30.0]
[1609994584228,4.00959,1209.7,1207.4,36.1623]
[1609994585029,4.00959,1209.2,1209.1,4.00959]
[1609994585228,4.00959,1209.2,1207.4,36.1623]
[1609994585529,4.00959,1209.2,1207.4,6.1623]
[1609994586933,4.00959,1208.6,1208.5,4.00959]
[1609994590137,3.0616,1210.2,1208.5,4.00959]
[1609994590937,3.0616,1210.2,1208.8,4.00959]
[1609994592138,3.0616,1210.2,1207.4,6.1623]
[1609994592939,4.00959,1208.9,1208.6,4.00959]
[1609994594937,4.00959,1208.7,1208.6,4.00959]
[1609994596137,4.00959,1208.7,1207.4,6.1623]
[1609994597140,1.6792,1209.2,1208.1,4.00959]
[1609994597641,3.3099,1209.2,1208.1,4.00959]
[1609994599043,4.00959,1208.7,1208.4,4.00959]
[1609994599240,5.68189,1208.7,1208.4,4.00959]
[1609994600441,4.00959,1208.7,1208.4,4.00959]
[1609994601043,4.00959,1208.7,1208.6,4.00959]
[1609994601344,5.66419,1208.7,1208.6,4.00959]
[1609994601944,4.00959,1208.7,1208.6,4.00959]
[1609994602944,5.64609,1208.7,1208.6,4.00959]
[1609994603144,4.00959,1208.7,1208.6,4.00959]
[1609994604148,5.66099,1208.7,1208.6,4.00959]
[1609994604847,1.6514,1208.7,1208.6,4.00959]
[1609994605047,1.643,1208.9,1208.6,4.00959]
[1609994605248,4.00959,1209.0,1208.6,4.00959]
[1609994606147,1.665,1209.2,1208.6,4.00959]
[1609994606347,1.6527,1209.0,1208.6,4.00959]
[1609994607050,1.6527,1209.0,1208.9,4.00959]
[1609994607553,4.00959,1209.4,1208.9,4.00959]
[1609994608654,5.65319,1209.4,1208.9,4.00959]
[1609994609154,5.65319,1209.4,1209.3,4.00959]
[1609994609954,1.6436,1209.4,1209.3,4.00959]
[1609994610454,6.1877,1211.1,1209.3,4.00959]
[1609994611155,4.00959,1210.0,1209.8,4.00959]
[1609994611355,4.00959,1210.0,1207.4,36.1623]
[1609994613158,4.00959,1210.0,1209.9,4.00959]
[1609994613658,4.00959,1210.0,1207.4,36.1623]
[1609994615260,6.6458,1211.4,1207.4,36.1623]
[1609994615261,4.00959,1209.7,1209.4,4.00959]
[1609994616063,5.66379,1209.7,1209.4,4.00959]
[1609994616263,4.00959,1209.7,1209.4,4.00959]
[1609994616866,5.65819,1209.7,1209.4,4.00959]
[1609994617065,4.00959,1209.7,1209.4,4.00959]
[1609994617768,2.0831,1211.0,1209.4,4.00959]
[1609994619268,2.9718,1211.4,1210.0,4.00959]
[1609994619474,50.3066,1212.0,1210.0,4.00959]
[1609994619673,80.3066,1212.0,1210.0,4.00959]
[1609994619875,80.3066,1212.0,1207.4,36.1623]
[1609994620078,82.903,1212.0,1207.4,36.1623]
[1609994620676,52.903,1212.0,1207.4,36.1623]
[1609994621180,4.00959,1210.0,1209.9,4.00959]
[1609994623183,2.7668,1211.4,1209.9,4.00959]
[1609994623681,3.4051,1211.7,1209.9,4.00959]
[1609994624180,5.0641,1211.7,1209.9,4.00959]
[1609994624580,3.4051,1211.7,1209.9,4.00959]
[1609994625182,4.00959,1210.3,1210.1,4.00959]
[1609994625981,4.00959,1210.3,1207.4,36.1623]
[1609994627284,4.00959,1210.3,1210.2,4.00959]
[1609994641097,4.00959,1210.3,1207.4,36.1623]
[1609994641298,4.00959,1210.1,1210.0,4.00959]
[1609994643302,4.00959,1210.1,1209.3,4.00959]
[1609994645004,4.00959,1210.1,1207.4,36.1623]
[1609994645304,4.00959,1209.2,1209.1,4.00959]
[1609994650211,56.0665,1210.4,1209.1,4.00959]
[1609994651514,4.00959,1209.4,1209.1,4.00959]
[1609994655420,4.00959,1209.4,1209.3,4.00959]
[1609994656920,4.00959,1209.4,1207.4,36.1623]
[1609994657319,4.00959,1209.4,1209.1,4.00959]
[1609994658518,4.00959,1209.4,1207.4,6.1623]
[1609994659419,4.00959,1208.8,1208.6,4.00959]
[1609994659921,4.00959,1208.8,1207.4,6.1623]
[1609994661322,4.00959,1208.4,1208.2,4.00959]
[1609994663226,2.722,1210.9,1208.2,4.00959]
[1609994663727,30.0,1211.3,1207.4,6.1623]
[1609994664126,4.00959,1208.8,1208.6,4.00959]
[1609994664326,30.0,1211.3,1208.6,4.00959]
[1609994664526,2.1568,1210.8,1208.6,4.00959]
[1609994665627,6.1566,1211.4,1208.6,4.00959]
[1609994666128,4.00959,1210.0,1209.9,4.00959]
[1609994669830,65.9429,1211.8,1209.9,4.00959]
[1609994670230,4.00959,1210.2,1209.9,4.00959]
[1609994672132,4.00959,1210.2,1210.1,4.00959]
[1609994674836,4.00959,1210.2,1208.2,5.5838]
[1609994676138,4.00959,1209.4,1209.1,4.00959]
[1609994676739,2.9663,1211.1,1209.1,4.00959]
[1609994678141,4.00959,1209.9,1209.8,4.00959]
[1609994680044,4.00959,1209.9,1208.2,5.5838]
[1609994680344,4.00959,1209.9,1209.6,4.00959]
[1609994682145,4.00959,1209.7,1209.6,4.00959]
[1609994684948,2.9663,1211.1,1209.6,4.00959]
[1609994685348,60.6603,1211.2,1209.6,4.00959]
[1609994686149,60.6603,1211.2,1209.9,4.00959]
[1609994687050,60.6603,1211.2,1208.2,5.5838]
[1609994688148,60.6603,1211.2,1208.2,35.5838]
[1609994688348,60.6603,1211.2,1209.9,4.00959]
[1609994689049,60.6603,1211.2,1208.2,35.5838]
[1609994689349,60.6603,1211.2,1208.2,5.5838]
[1609994690251,4.00959,1209.9,1209.8,4.00959]
[1609994693255,60.6603,1211.2,1209.8,4.00959]
[1609994694259,2.581,1211.4,1210.2,4.00959]
[1609994694557,6.7084,1211.9,1210.2,4.00959]
[1609994694958,3.0344,1211.9,1210.2,4.00959]
[1609994695158,36.1177,1212.9,1210.2,4.00959]
[1609994696060,36.1177,1212.9,1208.2,35.5838]
[1609994696259,4.00959,1210.0,1209.9,4.00959]
[1609994697159,4.00959,1210.0,1208.2,35.5838]
[1609994698265,4.00959,1210.0,1209.8,4.00959]
[1609994698464,2.1095,1211.0,1209.8,4.00959]
[1609994699364,2.5797,1211.4,1209.8,4.00959]
[1609994700265,38.4959,1212.9,1210.4,4.00959]
[1609994700566,38.4959,1212.9,1208.2,35.5838]
[1609994701367,8.4959,1212.9,1208.2,35.5838]
[1609994702268,4.00959,1210.9,1210.8,4.00959]
[1609994703370,4.00959,1210.9,1208.2,35.5838]
[1609994704271,4.00959,1210.7,1210.5,4.00959]
[1609994710876,58.4149,1211.6,1210.5,4.00959]
[1609994712480,4.00959,1210.9,1210.8,4.00959]
[1609994712679,58.4149,1211.6,1210.8,4.00959]
[1609994713179,54.4386,1211.8,1210.8,4.00959]
[1609994714381,54.4386,1211.8,1208.2,35.5838]
[1609994714981,54.4386,1211.8,1211.1,4.00959]
[1609994715781,54.4386,1211.8,1208.2,35.5838]
[1609994716882,54.4386,1211.8,1211.0,4.00959]
[1609994718887,4.00959,1211.0,1210.8,4.00959]
[1609994720190,4.00959,1211.0,1208.2,35.5838]
[1609994721089,4.00959,1210.0,1208.2,35.5838]
[1609994721389,4.00959,1210.0,1208.2,5.5838]
[1609994722897,4.00959,1209.6,1209.5,4.00959]
[1609994726398,4.00959,1209.6,1208.2,5.5838]
[1609994727098,4.00959,1209.3,1209.2,4.00959]
[1609994728301,1.6429,1210.7,1209.2,4.00959]
[1609994728499,2.25,1211.2,1209.2,4.00959]
[1609994728798,3.674,1212.1,1208.2,5.5838]
[1609994729100,4.00959,1210.2,1210.1,4.00959]
[1609994729400,2.2633,1211.2,1210.1,4.00959]
[1609994730999,2.2633,1211.2,1208.3,30.0]
[1609994731199,2.2633,1211.2,1209.9,4.00959]
[1609994732501,53.3318,1212.1,1209.9,4.00959]
[1609994733304,4.00959,1210.4,1208.3,30.0]
[1609994735207,4.00959,1210.4,1210.0,4.00959]
[1609994736511,2.8626,1211.5,1210.0,4.00959]
[1609994737314,4.00959,1210.6,1210.5,4.00959]
[1609994738614,4.00959,1210.6,1208.3,30.0]
[1609994739114,4.00959,1210.6,1208.2,5.5838]
[1609994739316,4.00959,1210.0,1209.7,4.00959]
[1609994739715,4.00959,1210.0,1208.2,5.5838]
[1609994741117,4.00959,1210.0,1208.3,30.0]
[1609994741316,3.1817,1211.2,1209.8,4.00959]
[1609994741516,3.1817,1211.2,1208.3,30.0]
[1609994742517,3.1817,1211.2,1208.2,5.5838]
[1609994743218,4.00959,1209.5,1209.3,4.00959]
[1609994744020,4.00959,1209.5,1208.2,5.5838]
[1609994744622,3.1817,1211.2,1208.2,35.5838]
[1609994745022,4.22,1211.6,1208.2,35.5838]
[1609994745422,4.00959,1209.8,1209.6,4.00959]
[1609994746323,2.5601,1211.6,1209.6,4.00959]
[1609994746521,2.072,1211.9,1209.6,4.00959]
[1609994746823,33.674,1212.1,1209.6,4.00959]
[1609994747423,4.00959,1210.0,1209.6,4.00959]
[1609994748227,2.3476,1211.4,1209.6,4.00959]
[1609994749429,4.00959,1210.1,1209.9,4.00959]
[1609994749630,4.00959,1210.1,1208.2,5.5838]
[1609994750832,4.00959,1210.1,1208.2,35.5838]
[1609994751033,59.4372,1211.2,1208.2,35.5838]
[1609994751436,4.00959,1210.4,1210.2,4.00959]
[1609994753131,4.00959,1210.4,1208.2,35.5838]
[1609994753432,4.00959,1210.1,1209.8,4.00959]
[1609994753833,59.4372,1211.2,1209.8,4.00959]
[1609994755435,4.00959,1210.1,1209.8,4.00959]
[1609994757137,4.00959,1210.1,1208.2,5.5838]
[1609994757336,4.00959,1209.9,1209.6,4.00959]
[1609994757537,4.00959,1209.9,1208.2,5.5838]
[1609994759442,2.529,1211.3,1209.1,4.00959]
[1609994759641,2.225,1210.9,1209.1,4.00959]
[1609994761342,4.00959,1209.6,1209.4,4.00959]
[1609994761743,4.00959,1209.6,1208.2,5.5838]
[1609994763346,4.00959,1209.0,1208.8,4.00959]
[1609994764043,2.225,1210.9,1208.8,4.00959]
[1609994764446,2.225,1210.9,1208.2,5.5838]
[1609994764643,32.3841,1210.9,1208.2,5.5838]
[1609994765447,4.00959,1209.0,1208.8,4.00959]
[1609994766052,4.00959,1209.0,1208.2,5.5838]
[1609994767353,4.00959,1209.0,1208.6,4.00959]
[1609994770354,49.6805,1210.1,1208.6,4.00959]
[1609994771356,4.00959,1209.2,1208.9,4.00959]
[1609994772157,4.00959,1209.2,1208.2,5.5838]
[1609994773459,4.00959,1208.3,1208.2,9.59339]
[1609994773659,4.00959,1208.3,1208.2,4.00959]
[1609994773958,49.6805,1210.1,1208.2,4.00959]
[1609994774559,49.6805,1210.1,1208.0,5.9344]
[1609994774861,51.8592,1210.1,1203.9,5.8705]
[1609994775058,51.8592,1210.1,1204.0,30.0]
[1609994775458,51.8592,1210.1,1208.2,4.00959]
[1609994777458,4.00959,1208.5,1208.4,4.00959]
[1609994777660,51.8592,1210.1,1208.4,4.00959]
[1609994778760,64.7501,1210.0,1208.4,4.00959]
[1609994778961,2.1787,1210.1,1208.4,4.00959]
[1609994779462,4.00959,1208.5,1208.2,4.00959]
[1609994779661,2.1787,1210.1,1208.2,4.00959]
[1609994779861,2.2839,1210.4,1208.2,4.00959]
[1609994780161,2.3841,1210.9,1204.0,30.0]
[1609994780362,2.4327,1211.0,1204.0,30.0]
[1609994780764,32.4327,1211.0,1204.0,30.0]
[1609994781465,32.4327,1211.0,1208.0,4.00959]
[1609994781966,32.4327,1211.0,1204.0,30.0]
[1609994782171,34.8776,1211.0,1204.0,30.0]
[1609994783571,4.00959,1207.9,1207.8,4.00959]
[1609994784069,4.00959,1207.9,1204.0,30.0]
[1609994785572,2.2237,1209.9,1207.7,4.00959]
[1609994787475,4.00959,1208.3,1208.2,4.00959]
[1609994789477,4.00959,1208.3,1204.2,30.0]
[1609994789677,4.00959,1208.3,1204.3,30.0]
[1609994789978,4.00959,1208.3,1204.3,41.051]
[1609994791479,4.00959,1208.3,1208.2,4.00959]
[1609994792378,50.4518,1209.3,1208.2,4.00959]
[1609994793481,50.4518,1209.3,1208.4,4.00959]
[1609994795480,4.00959,1209.0,1208.7,4.00959]
[1609994797383,50.4518,1209.3,1208.7,4.00959]
[1609994797584,4.00959,1209.4,1208.9,4.00959]
[1609994799484,4.00959,1209.4,1209.3,4.00959]
[1609994800988,4.00959,1209.4,1204.7,30.0]
[1609994801586,4.00959,1209.4,1209.2,4.00959]
[1609994803187,4.00959,1209.4,1204.7,30.0]
[1609994803690,4.00959,1209.0,1204.7,30.0]
[1609994805589,4.00959,1208.7,1208.4,4.00959]
[1609994807593,4.00959,1208.5,1208.4,4.00959]
[1609994814600,4.00959,1208.5,1204.7,30.0]
[1609994815602,4.00959,1208.5,1208.3,4.00959]
[1609994824512,66.5663,1209.3,1208.3,4.00959]
[1609994825712,4.00959,1209.1,1208.9,4.00959]
[1609994827913,66.5663,1209.3,1208.9,4.00959]
[1609994829718,66.5663,1209.3,1209.2,4.00959]
[1609994831119,66.5663,1209.3,1205.3,37.377]
[1609994831717,66.5663,1209.3,1209.1,4.00959]
[1609994832917,66.5663,1209.3,1205.3,37.377]
[1609994833720,4.00959,1209.2,1209.1,4.00959]
[1609994833920,66.5663,1209.3,1209.1,4.00959]
[1609994835221,3.674,1211.2,1205.3,37.377]
[1609994835828,3.674,1211.2,1209.2,4.00959]
[1609994837927,4.00959,1209.3,1205.3,37.377]
[1609994839828,4.00959,1208.4,1208.2,4.00959]
[1609994843830,4.00959,1208.6,1208.2,4.00959]
[1609994845836,4.00959,1208.6,1205.3,37.377]
[1609994847836,4.00959,1208.4,1208.3,4.00959]
[1609994861148,4.00959,1208.4,1205.3,37.377]
[1609994861749,49.2215,1209.6,1205.3,37.377]
[1609994862249,49.2215,1209.6,1208.4,4.00959]
[1609994863351,3.3528,1210.2,1208.4,4.00959]
[1609994863550,33.674,1210.4,1208.4,4.00959]
[1609994864351,4.00959,1208.6,1208.4,4.00959]
[1609994864950,2.204,1210.2,1208.4,4.00959]
[1609994865251,2.204,1210.2,1205.3,37.377]
[1609994866252,4.00959,1208.5,1208.3,4.00959]
[1609994866452,2.204,1210.2,1208.3,4.00959]
[1609994866959,3.674,1210.4,1208.3,4.00959]
[1609994868554,3.674,1210.4,1208.9,4.00959]
[1609994870357,4.00959,1209.0,1208.9,4.00959]
[1609994870858,4.00959,1209.0,1205.3,37.377]
[1609994872458,4.00959,1208.6,1208.4,4.00959]
[1609994873162,4.00959,1208.6,1205.3,37.377]
[1609994874366,4.00959,1208.2,1208.1,4.00959]
[1609994878871,62.5734,1209.1,1208.1,4.00959]
[1609994880373,4.00959,1208.2,1208.1,4.00959]
[1609994887175,55.9664,1208.9,1208.1,4.00959]
[1609994888576,4.00959,1208.6,1208.5,4.00959]
[1609994889173,55.9664,1208.9,1208.5,4.00959]
[1609994890679,4.00959,1208.8,1208.5,4.00959]
[1609994893680,4.00959,1208.8,1205.3,37.377]
[1609994894681,4.00959,1208.5,1208.3,4.00959]
[1609994895481,50.9581,1209.6,1208.3,4.00959]
[1609994896783,4.00959,1208.7,1208.6,4.00959]
[1609994897382,4.00959,1208.7,1205.3,37.377]
[1609994898783,4.00959,1208.5,1208.4,4.00959]
[1609994901089,4.00959,1208.5,1205.3,37.377]
[1609994902989,4.00959,1208.2,1208.0,4.00959]
[1609994903989,4.00959,1208.2,1205.3,37.377]
[1609994904791,4.00959,1207.8,1207.7,4.00959]
[1609994906396,4.00959,1207.8,1205.3,37.377]
[1609994906897,4.00959,1207.6,1207.4,4.00959]
[1609994908800,4.00959,1207.6,1207.3,4.00959]
[1609994910503,4.00959,1207.6,1205.2,36.0754]
[1609994910703,4.00959,1207.6,1205.2,6.0754]
[1609994910903,4.00959,1207.1,1206.9,4.00959]
[1609994913604,4.00959,1207.1,1205.2,6.0754]
[1609994914805,4.00959,1206.8,1206.6,4.00959]
[1609994915105,4.00959,1206.8,1205.2,6.0754]
[1609994916006,64.6007,1207.7,1205.2,6.0754]
[1609994916404,64.6007,1207.7,1205.2,36.0754]
[1609994916907,4.00959,1207.3,1205.2,36.0754]
[1609994918607,4.00959,1207.3,1205.2,6.0754]
[1609994918906,4.00959,1207.1,1206.9,4.00959]
[1609994921208,33.2292,1208.9,1206.9,4.00959]
[1609994922712,33.2292,1208.9,1205.2,6.0754]
[1609994922911,4.00959,1206.9,1206.6,4.00959]
[1609994924011,4.00959,1206.9,1205.2,6.0754]
[1609994925013,4.00959,1206.6,1206.5,4.00959]
[1609994925913,2.6631,1208.6,1206.5,4.00959]
[1609994927016,4.00959,1206.8,1206.5,4.00959]
[1609994928116,4.00959,1206.8,1205.2,6.0754]
[1609994928918,4.00959,1206.5,1206.3,4.00959]
[1609994931221,32.6631,1208.6,1206.3,4.00959]
[1609994931521,2.6631,1208.6,1206.3,4.00959]
[1609994931820,3.2292,1208.9,1206.3,4.00959]
[1609994932123,30.0,1209.0,1206.3,4.00959]
[1609994932923,4.00959,1206.8,1206.6,4.00959]
[1609994933323,2.4979,1208.9,1206.6,4.00959]
[1609994933625,32.4979,1208.9,1206.6,4.00959]
[1609994934626,32.4979,1208.9,1205.2,6.0754]
[1609994934923,4.00959,1206.7,1206.6,4.00959]
[1609994935325,2.4979,1208.9,1206.6,4.00959]
[1609994936927,4.00959,1207.3,1207.0,4.00959]
[1609994937730,2.4979,1208.9,1207.0,4.00959]
[1609994938128,2.4627,1209.4,1207.0,4.00959]
[1609994938328,30.0,1210.3,1207.0,4.00959]
[1609994938528,9.5664,1209.1,1207.0,4.00959]
[1609994938930,4.00959,1208.0,1207.8,4.00959]
[1609994948339,4.00959,1208.0,1205.3,30.0]
[1609994948537,4.00959,1208.0,1205.2,6.0754]
[1609994948939,4.00959,1208.0,1205.3,30.0]
[1609994949138,4.00959,1207.8,1207.5,4.00959]
[1609994951242,4.00959,1207.8,1205.3,30.0]
[1609994952541,9.5664,1209.1,1205.3,30.0]
[1609994953047,4.00959,1207.9,1207.6,4.00959]
[1609994954943,64.7818,1208.8,1207.6,4.00959]
[1609994955144,4.00959,1208.1,1207.9,4.00959]
[1609994960349,4.00959,1208.1,1205.3,30.0]
[1609994961050,4.00959,1207.8,1207.7,4.00959]
[1609994964759,55.6755,1209.0,1207.7,4.00959]
[1609994965155,4.00959,1208.1,1207.7,4.00959]
[1609994967057,4.00959,1207.8,1207.7,4.00959]
[1609994967358,62.5901,1208.8,1207.7,4.00959]
[1609994968959,63.3863,1209.0,1207.7,4.00959]
[1609994969157,4.00959,1207.9,1207.7,4.00959]
[1609994973162,63.3863,1209.0,1207.7,4.00959]
[1609994975064,4.00959,1208.7,1208.5,4.00959]
[1609994975764,63.3863,1209.0,1208.5,4.00959]
[1609994976065,58.1625,1208.9,1208.5,4.00959]
[1609994976267,2.0966,1209.8,1208.5,4.00959]
[1609994976464,3.674,1210.6,1208.5,4.00959]
[1609994977064,4.00959,1208.8,1208.7,4.00959]
[1609994980065,3.234,1209.9,1208.7,4.00959]
[1609994980265,64.0473,1210.3,1208.7,4.00959]
[1609994981166,64.0473,1210.3,1209.1,4.00959]
[1609994983166,4.00959,1209.2,1209.1,4.00959]
[1609994983667,4.00959,1209.2,1205.3,30.0]
[1609994985168,4.00959,1209.2,1209.0,4.00959]
[1609994985569,4.00959,1209.2,1205.3,30.0]
[1609994987171,4.00959,1208.8,1208.7,4.00959]
[1609994987770,2.3914,1210.3,1208.7,4.00959]
[1609994989372,4.00959,1208.8,1208.7,4.00959]
[1609994992477,53.0056,1209.6,1208.7,4.00959]
[1609994993278,53.0056,1209.6,1209.1,4.00959]
[1609994994878,56.492,1210.6,1209.1,4.00959]
[1609994995180,52.818,1210.6,1209.1,4.00959]
[1609994995381,4.00959,1209.2,1209.1,4.00959]
[1609995008205,4.00959,1209.2,1205.3,30.0]
[1609995009406,66.8626,1209.9,1205.3,30.0]
[1609995010210,96.8626,1209.9,1205.3,30.0]
[1609995011313,4.00959,1207.9,1207.6,4.00959]
[1609995011714,4.00959,1207.9,1205.3,30.0]
[1609995013414,4.00959,1207.9,1207.5,4.00959]
[1609995017417,4.00959,1207.9,1207.8,4.00959]